fUST/lending_fUST_20250715
["ID","MTS","AMOUNT","RATE_DAILY","PERIOD"]
[372220125,1752555045546,-533.07,0.00021369,3]
[372220126,1752555045555,-769.52,0.00021369,3]
[372220127,1752555045565,-460.0,0.00021369,3]
[372220128,1752555045575,-3197.5,0.00021369,3]
[372220129,1752555045584,-460.0,0.00021369,3]
[372220130,1752555045594,-470.36937149,0.00021369,3]
[372220131,1752555045603,-460.0,0.00021369,3]
[372220132,1752555045613,-518.82,0.00021369,3]
[372220133,1752555045635,-461.38,0.00021369,3]
[372220134,1752555045645,-460.0,0.00021369,3]
[372220135,1752555045655,-460.0,0.00021369,3]
[372220136,1752555045665,-460.0,0.00021369,3]
[372220137,1752555045676,-153.672201,0.00021369,2]
[372220138,1752555045686,-802.02,0.00021369,3]
[372220140,1752555045696,-532.17,0.00021369,3]
[372220142,1752555045705,-460.0,0.00021369,3]
[372220144,1752555045715,-2142.07,0.00021369,3]
[372220146,1752555045724,-460.0,0.00021369,3]
[372220148,1752555045734,-460.0,0.00021369,3]
[372220150,1752555045743,-161.707652,0.00021369,2]
[372220152,1752555045752,-473.5,0.00021369,3]
[372220154,1752555045761,-460.0,0.00021369,3]
[372220156,1752555045771,-463.40718438,0.00021369,3]
[372220158,1752555045780,-481.12,0.00021369,3]
[372220160,1752555045789,-667.24,0.00021369,3]
[372220162,1752555045798,-151.0,0.00021369,2]
[372220164,1752555045807,-1088.91,0.00021369,3]
[372220165,1752555045817,-642.73,0.00021369,3]
[372220167,1752555045827,-151.0,0.00021369,2]
[372220170,1752555045839,-460.0,0.00021369,3]
[372220171,1752555045849,-605.34,0.00021369,3]
[372220174,1752555045858,-917.12,0.00021369,3]
[372220175,1752555045867,-460.0,0.00021369,3]
[372220177,1752555045876,-3078.1,0.00021369,3]
[372220179,1752555045886,-488.91,0.00021369,3]
[372220181,1752555045896,-460.0,0.00021369,3]
[372220183,1752555045905,-460.0,0.00021369,3]
[372220185,1752555045915,-460.0,0.00021369,3]
[372220187,1752555045924,-162.909715,0.00021369,2]
[372220189,1752555045933,-460.0,0.00021369,3]
[372220191,1752555045943,-162.909715,0.00021369,2]
[372220193,1752555045952,-460.0,0.00021369,3]
[372220196,1752555045962,-460.0,0.00021369,3]
[372220198,1752555045971,-460.0,0.00021369,3]
[372220200,1752555045981,-460.0,0.00021369,3]
[372220201,1752555045990,-460.0,0.00021369,3]
[372220204,1752555046001,-973.85,0.00021369,3]
[372220205,1752555046010,-5137.24,0.00021369,3]
[372220207,1752555046020,-562.29,0.00021369,3]
[372220209,1752555046029,-460.0,0.00021369,3]
[372220211,1752555046038,-460.0,0.00021369,3]
[372220213,1752555046047,-574.14,0.00021369,3]
[372220215,1752555046057,-1061.95,0.00021369,3]
[372220217,1752555046066,-3923.86,0.00021369,3]
[372220219,1752555046075,-863.54,0.00021369,3]
[372220221,1752555046084,-460.0,0.00021369,3]
[372220223,1752555046094,-152.004318,0.00021369,2]
[372220225,1752555046103,-858.1897352,0.0002137,2]
[372220227,1752555046113,-151.0,0.000214,4]
[372220229,1752555046122,-151.0,0.00021417,2]
[372220231,1752555046132,-151.363017,0.00021417,2]
[372220233,1752555046142,-7435.59614635,0.00021417,5]
[372220235,1752555046151,-2818.0,0.00021423,2]
[372220237,1752555046161,-2818.0,0.00021428,2]
[372220238,1752555046170,-151.0,0.00021479,2]
[372220239,1752555046180,-151.0,0.00021479,2]
[372220240,1752555046189,-151.0,0.00021479,2]
[372220241,1752555046199,-521.740457,0.00021479,2]
[372220242,1752555046208,-521.740457,0.00021479,2]
[372220243,1752555046218,-506.846544,0.00021479,2]
[372220244,1752555046228,-800.446242,0.00021479,2]
[372220245,1752555046238,-506.846544,0.00021479,2]
[372220246,1752555046248,-800.446242,0.00021479,2]
[372220247,1752555046258,-169.95868,0.00021479,2]
[372220248,1752555046268,-169.95868,0.00021479,2]
[372220249,1752555046277,-2818.0,0.0002148,2]
[372220250,1752555046287,-151.0,0.000215,3]
[372220251,1752555046296,-460.0,0.00021505,3]
[372220252,1752555046305,-460.0,0.00021505,3]
[372220253,1752555046315,-460.0,0.00021505,3]
[372220254,1752555046325,-460.0,0.00021505,3]
[372220255,1752555046335,-188.14487007,0.00021505,3]
[372220256,1752555046347,-327.04965892,0.00021505,3]
[372220257,1752555046430,-460.0,0.00021505,3]
[372220258,1752555046439,-466.87969275,0.00021505,3]
[372220259,1752555046449,-460.0,0.00021505,3]
[372220260,1752555046458,-460.0,0.00021505,3]
[372220261,1752555046468,-469.10008909,0.00021505,3]
[372220262,1752555046478,-151.0,0.00021505,2]
[372220263,1752555046488,-460.0,0.00021505,3]
[372220264,1752555046498,-460.0,0.00021505,3]
[372220265,1752555046509,-151.0,0.00021505,2]
[372220266,1752555046518,-460.0,0.00021505,3]
[372220267,1752555046527,-151.0,0.00021505,2]
[372220268,1752555046537,-154.843743,0.00021505,2]
[372220269,1752555046546,-460.0,0.00021505,3]
[372220270,1752555046555,-460.0,0.00021505,3]
[372220271,1752555046565,-553.465009,0.00021505,2]
[372220272,1752555046574,-553.465009,0.00021505,2]
[372220273,1752555046584,-739.4,0.00021505,3]
[372220274,1752555046594,-460.0,0.00021505,3]
[372220275,1752555046603,-1023.824122,0.00021505,2]
[372220276,1752555046612,-1023.824122,0.00021505,2]
[372220277,1752555046622,-313.13,0.00021505,3]
[372220278,1752555046631,-460.0,0.00021505,3]
[372220279,1752555046640,-460.0,0.00021505,3]
[372220280,1752555046651,-465.37287782,0.00021505,3]
[372220281,1752555046660,-151.0,0.00021505,2]
[372220282,1752555046670,-229.12689973,0.00021505,3]
[372220283,1752555046679,-643.43,0.00021505,3]
[372220284,1752555046688,-460.0,0.00021505,3]
[372220285,1752555046697,-1492.12,0.00021505,3]
[372220286,1752555046707,-460.0,0.00021505,3]
[372220287,1752555046716,-460.0,0.00021505,3]
[372220288,1752555046726,-460.0,0.00021505,3]
[372220289,1752555046735,-1772.41,0.00021505,3]
[372220290,1752555046745,-460.0,0.00021505,3]
[372220291,1752555046755,-2396.13,0.00021505,3]
[372220292,1752555046765,-460.0,0.00021505,3]
[372220293,1752555046774,-460.0,0.00021505,3]
[372220294,1752555046784,-1659.78,0.00021505,3]
[372220295,1752555046794,-1348.1,0.00021505,3]
[372220296,1752555046804,-1120.91,0.00021505,3]
[372220297,1752555046813,-641.93,0.00021505,3]
[372220298,1752555046823,-4046.12,0.00021505,3]
[372220299,1752555046832,-215.50840239,0.00021511,2]
[372220300,1752555046842,-12603.13032295,0.00021511,2]
[372220301,1752555046852,-259.74204433,0.00021544,2]
[372220302,1752555046861,-7435.59614635,0.0002159,5]
[372220303,1752555046872,-2818.0,0.00021599,2]
[372220304,1752555046882,-160.0,0.00021609,2]
[372220305,1752555046891,-468.75,0.00021609,2]
[372220306,1752555046901,-160.0,0.00021609,2]
[372220307,1752555046911,-160.0,0.00021609,2]
[372220308,1752555046920,-160.0,0.00021609,2]
[372220309,1752555046930,-160.0,0.00021609,2]
[372220310,1752555046939,-214.37129034,0.00021609,2]
[372220311,1752555046949,-160.0,0.00021609,2]
[372220312,1752555046959,-160.0,0.00021609,2]
[372220313,1752555046970,-160.0,0.00021609,2]
[372220314,1752555046979,-838.84061749,0.00021609,2]
[372220315,1752555046989,-525.51022752,0.00021609,2]
[372220316,1752555046998,-7338.41419748,0.00021621,2]
[372220317,1752555047007,-460.0,0.00021643,3]
[372220318,1752555047017,-460.0,0.00021643,3]
[372220319,1752555047027,-460.0,0.00021643,3]
[372220320,1752555047037,-460.0,0.00021643,3]
[372220321,1752555047046,-460.0,0.00021643,3]
[372220322,1752555047055,-460.0,0.00021643,3]
[372220323,1752555047065,-460.0,0.00021643,3]
[372220324,1752555047074,-642.85,0.00021643,3]
[372220325,1752555047084,-460.0,0.00021643,3]
[372220326,1752555047095,-460.0,0.00021643,3]
[372220327,1752555047104,-460.0,0.00021643,3]
[372220328,1752555047114,-463.79,0.00021643,3]
[372220329,1752555047124,-460.59,0.00021643,3]
[372220330,1752555047134,-472.95933375,0.00021643,3]
[372220331,1752555047143,-460.0,0.00021643,3]
[372220332,1752555047153,-539.47414483,0.00021643,3]
[372220333,1752555047163,-460.0,0.00021643,3]
[372220334,1752555047172,-4718.55,0.00021643,3]
[372220335,1752555047182,-610.27,0.00021643,3]
[372220336,1752555047191,-151.0,0.00021643,2]
[372220337,1752555047201,-2259.06,0.00021643,3]
[372220338,1752555047210,-1219.81,0.00021643,3]
[372220339,1752555047220,-746.45,0.00021643,3]
[372220340,1752555047230,-577.45,0.00021643,3]
[372220341,1752555047241,-533.07,0.00021643,3]
[372220342,1752555047251,-769.52,0.00021643,3]
[372220343,1752555047261,-460.0,0.00021643,3]
[372220344,1752555047271,-3197.5,0.00021643,3]
[372220345,1752555047281,-460.0,0.00021643,3]
[372220346,1752555047291,-514.79,0.00021643,3]
[372220347,1752555047300,-518.82,0.00021643,3]
[372220348,1752555047310,-461.38,0.00021643,3]
[372220349,1752555047319,-460.0,0.00021643,3]
[372220350,1752555047328,-460.0,0.00021643,3]
[372220351,1752555047339,-802.02,0.00021643,3]
[372220352,1752555047348,-532.17,0.00021643,3]
[372220353,1752555047358,-2142.07,0.00021643,3]
[372220354,1752555047370,-460.0,0.00021643,3]
[372220355,1752555047385,-460.0,0.00021643,3]
[372220356,1752555047394,-473.5,0.00021643,3]
[372220357,1752555047404,-460.0,0.00021643,3]
[372220358,1752555047413,-481.12,0.00021643,3]
[372220359,1752555047423,-667.24,0.00021643,3]
[372220360,1752555047432,-151.0,0.00021643,2]
[372220361,1752555047442,-1088.91,0.00021643,3]
[372220362,1752555047451,-642.73,0.00021643,3]
[372220363,1752555047461,-151.0,0.00021643,2]
[372220364,1752555047471,-460.0,0.00021643,3]
[372220365,1752555047482,-605.34,0.00021643,3]
[372220366,1752555047493,-917.12,0.00021643,3]
[372220367,1752555047503,-300.34178847,0.00021643,3]
[372220368,1752555047512,-3078.1,0.00021643,3]
[372220369,1752555047522,-488.91,0.00021643,3]
[372220370,1752555047531,-460.0,0.00021643,3]
[372220371,1752555047541,-460.0,0.00021643,3]
[372220372,1752555047550,-460.0,0.00021643,3]
[372220373,1752555047559,-162.909715,0.00021643,2]
[372220374,1752555047569,-460.0,0.00021643,3]
[372220375,1752555047578,-460.0,0.00021643,3]
[372220376,1752555047588,-162.909715,0.00021643,2]
[372220377,1752555047597,-463.9073165,0.00021643,3]
[372220378,1752555047607,-460.0,0.00021643,3]
[372220379,1752555047617,-460.0,0.00021643,3]
[372220380,1752555047629,-460.0,0.00021643,3]
[372220381,1752555047638,-973.85,0.00021643,3]
[372220382,1752555047648,-5137.24,0.00021643,3]
[372220383,1752555047657,-562.29,0.00021643,3]
[372220384,1752555047667,-515.79263716,0.00021643,3]
[372220385,1752555047676,-574.14,0.00021643,3]
[372220386,1752555047686,-1061.95,0.00021643,3]
[372220387,1752555047695,-3923.86,0.00021643,3]
[372220388,1752555047705,-863.54,0.00021643,3]
[372220389,1752555047720,-460.0,0.00021643,3]
[372220390,1752555047729,-150000.0,0.00021643,2]
[372220391,1752555047739,-2818.0,0.00021644,2]
[372220392,1752555047748,-260.0,0.00021648,2]
[372220393,1752555047757,-151.0,0.00021667,2]
[372220394,1752555047766,-521.740457,0.00021667,2]
[372220395,1752555047775,-521.740457,0.00021667,2]
[372220396,1752555047784,-506.846544,0.00021667,2]
[372220397,1752555047794,-800.446242,0.00021667,2]
[372220398,1752555047803,-506.846544,0.00021667,2]
[372220399,1752555047813,-800.446242,0.00021667,2]
[372220400,1752555047822,-169.95868,0.00021667,2]
[372220401,1752555047832,-169.95868,0.00021667,2]
[372220402,1752555047841,-25000.0,0.00021667,2]
[372220403,1752555047922,-151.0,0.000217,4]
[372220404,1752555047932,-151.0,0.000217,2]
[372220405,1752555047942,-151.0,0.000217,2]
[372220406,1752555047951,-151.0,0.000217,2]
[372220407,1752555047961,-150000.0,0.000217,2]
[372220408,1752555047970,-150000.0,0.000217,2]
[372220409,1752555047979,-150000.0,0.000217,2]
[372220410,1752555047989,-532.62623027,0.00021721,2]
[372220411,1752555047998,-1000.0,0.00021721,2]
[372220412,1752555048008,-1023.16852624,0.00021721,2]
[372220413,1752555048017,-1000.0,0.00021721,2]
[372220414,1752555048027,-151.0,0.00021762,2]
[372220415,1752555048036,-151.0,0.00021762,2]
[372220416,1752555048046,-151.0,0.00021762,2]
[372220417,1752555048055,-553.465009,0.00021762,2]
[372220418,1752555048064,-553.465009,0.00021762,2]
[372220419,1752555048074,-1023.824122,0.00021762,2]
[372220420,1752555048083,-1023.824122,0.00021762,2]
[372220421,1752555048093,-151.0,0.00021762,2]
[372220422,1752555048102,-7435.59614635,0.00021762,5]
[372220423,1752555048112,-1500.0,0.00021768,2]
[372220424,1752555048123,-460.0,0.00021779,3]
[372220425,1752555048132,-460.0,0.00021779,3]
[372220426,1752555048141,-465.62484382,0.00021779,3]
[372220427,1752555048151,-300.35889039,0.00021779,3]
[372220428,1752555048161,-460.0,0.00021779,3]
[372220429,1752555048170,-460.0,0.00021779,3]
[372220430,1752555048180,-151.0,0.00021779,2]
[372220431,1752555048190,-460.0,0.00021779,3]
[372220432,1752555048200,-460.0,0.00021779,3]
[372220433,1752555048209,-460.0,0.00021779,3]
[372220434,1752555048220,-460.0,0.00021779,3]
[372220435,1752555048230,-419.44985063,0.00021779,3]
[372220436,1752555048240,-739.4,0.00021779,3]
[372220437,1752555048250,-460.0,0.00021779,3]
[372220438,1752555048260,-460.0,0.00021779,3]
[372220439,1752555048271,-643.43,0.00021779,3]
[372220440,1752555048281,-1492.12,0.00021779,3]
[372220441,1752555048291,-460.0,0.00021779,3]
[372220442,1752555048508,-460.0,0.00021779,3]
[372220443,1752555048519,-1772.41,0.00021779,3]
[372220444,1752555048529,-460.0,0.00021779,3]
[372220445,1752555048539,-2396.13,0.00021779,3]
[372220446,1752555048549,-460.0,0.00021779,3]
[372220447,1752555048559,-460.0,0.00021779,3]
[372220448,1752555048568,-1659.78,0.00021779,3]
[372220449,1752555048578,-1348.1,0.00021779,3]
[372220450,1752555048588,-1120.91,0.00021779,3]
[372220451,1752555048598,-641.93,0.00021779,3]
[372220452,1752555048608,-4046.12,0.00021779,3]
[372220453,1752555048618,-5307.16,0.000218,2]
[372220454,1752555048629,-151.0,0.000218,3]
[372220455,1752555048638,-151.0,0.00021816,2]
[372220456,1752555048648,-151.0,0.00021816,2]
[372220457,1752555048658,-2818.0,0.00021867,2]
[372220458,1752555048668,-230.76969291,0.00021883,2]
[372220459,1752555048678,-741.502,0.00021892,2]
[372220460,1752555048687,-2155.0,0.00021892,2]
[372220461,1752555048696,-968.0,0.00021892,2]
[372220462,1752555048706,-2576.08,0.000219,2]
[372220463,1752555048715,-151.0,0.00021916,2]
[372220464,1752555048725,-151.0,0.00021916,2]
[372220465,1752555048735,-162.909715,0.00021916,2]
[372220466,1752555048744,-162.909715,0.00021916,2]
[372220467,1752555048754,-2818.0,0.00021916,2]
[372220468,1752555048764,-812.37032582,0.00021917,2]
[372220469,1752555048775,-460.0,0.00021917,3]
[372220470,1752555048784,-460.0,0.00021917,3]
[372220471,1752555048794,-460.0,0.00021917,3]
[372220472,1752555048803,-460.0,0.00021917,3]
[372220473,1752555048813,-3249.48130328,0.00021917,2]
[372220474,1752555048823,-458.54281794,0.00021917,3]
[372220475,1752555048833,-460.0,0.00021917,3]
[372220476,1752555048842,-460.0,0.00021917,3]
[372220477,1752555048852,-460.0,0.00021917,3]
[372220478,1752555048861,-460.0,0.00021917,3]
[372220479,1752555048873,-460.0,0.00021917,3]
[372220480,1752555048882,-460.0,0.00021917,3]
[372220481,1752555048892,-460.0,0.00021917,3]
[372220482,1752555048901,-462.53475854,0.00021917,3]
[372220483,1752555048911,-460.0,0.00021917,3]
[372220484,1752555048921,-460.0,0.00021917,3]
[372220485,1752555048931,-460.0,0.00021917,3]
[372220486,1752555048940,-460.60351202,0.00021917,3]
[372220487,1752555048950,-460.0,0.00021917,3]
[372220488,1752555048959,-461.72347774,0.00021917,3]
[372220489,1752555048969,-461.62467188,0.00021917,3]
[372220490,1752555048978,-460.0,0.00021917,3]
[372220491,1752555048988,-462.51979054,0.00021917,3]
[372220492,1752555048997,-460.51848876,0.00021917,3]
[372220493,1752555049008,-460.0,0.00021917,3]
[372220494,1752555049018,-461.36785895,0.00021917,3]
[372220495,1752555049027,-461.13489023,0.00021917,3]
[372220496,1752555049037,-462.22480837,0.00021917,3]
[372220497,1752555049046,-461.23379072,0.00021917,3]
[372220498,1752555049055,-438.00977578,0.00021917,3]
[372220499,1752555049065,-462.04588806,0.00021917,3]
[372220500,1752555049074,-460.0,0.00021917,3]
[372220501,1752555049084,-515.88322257,0.00021917,3]
[372220502,1752555049093,-461.3476032,0.00021917,3]
[372220503,1752555049103,-461.16638355,0.00021917,3]
[372220504,1752555049112,-461.22608787,0.00021917,3]
[372220505,1752555049123,-461.0914089,0.00021917,3]
[372220506,1752555049132,-461.79050127,0.00021917,3]
[372220507,1752555049142,-460.0,0.00021917,3]
[372220508,1752555049152,-461.14878173,0.00021917,3]
[372220509,1752555049162,-460.0,0.00021917,3]
[372220510,1752555049172,-460.0,0.00021917,3]
[372220511,1752555049181,-462.45463036,0.00021917,3]
[372220512,1752555049191,-461.00435684,0.00021917,3]
[372220513,1752555049201,-463.2258639,0.00021917,3]
[372220514,1752555049210,-460.0,0.00021917,3]
[372220515,1752555049220,-460.0,0.00021917,3]
[372220516,1752555049230,-460.41766861,0.00021917,3]
[372220517,1752555049239,-460.0,0.00021917,3]
[372220518,1752555049249,-293.33953326,0.00021917,3]
[372220519,1752555049258,-461.3594574,0.00021917,3]
[372220520,1752555049267,-460.0,0.00021917,3]
[372220521,1752555049278,-151.0,0.00021917,2]
[372220522,1752555049287,-151.0,0.00021917,2]
[372220523,1752555049297,-151.0,0.00021917,2]
[372220524,1752555049307,-151.566049,0.00021917,2]
[372220525,1752555049316,-340.25875989,0.00021917,3]
[372220526,1752555049325,-154.988197,0.00021917,2]
[372220527,1752555049336,-151.0,0.00021917,2]
[372220528,1752555049348,-460.0,0.00021917,3]
[372220529,1752555049358,-460.0,0.00021917,3]
[372220530,1752555049368,-151.0,0.00021917,2]
[372220531,1752555049379,-460.0,0.00021917,3]
[372220532,1752555049389,-151.0,0.00021917,2]
[372220533,1752555049398,-7304.02159944,0.00021917,2]
[372220534,1752555049408,-460.0,0.00021917,3]
[372220535,1752555049420,-460.0,0.00021917,3]
[372220536,1752555049430,-553.465009,0.00021917,2]
[372220537,1752555049439,-553.465009,0.00021917,2]
[372220538,1752555049521,-460.0,0.00021917,3]
[372220539,1752555049531,-642.85,0.00021917,3]
[372220540,1752555049541,-460.0,0.00021917,3]
[372220541,1752555049552,-1023.824122,0.00021917,2]
[372220542,1752555049562,-460.0,0.00021917,3]
[372220543,1752555049572,-1023.824122,0.00021917,2]
[372220544,1752555049581,-151.0,0.00021917,2]
[372220545,1752555049591,-460.0,0.00021917,3]
[372220546,1752555049600,-463.79,0.00021917,3]
[372220547,1752555049610,-460.59,0.00021917,3]
[372220548,1752555049620,-151.0,0.00021917,2]
[372220549,1752555049630,-521.740457,0.00021917,2]
[372220550,1752555049639,-521.740457,0.00021917,2]
[372220551,1752555049649,-521.740457,0.00021917,2]
[372220552,1752555049658,-521.740457,0.00021917,2]
[372220553,1752555049667,-506.846544,0.00021917,2]
[372220554,1752555049677,-800.446242,0.00021917,2]
[372220555,1752555049687,-460.0,0.00021917,3]
[372220556,1752555049696,-506.846544,0.00021917,2]
[372220557,1752555049705,-800.446242,0.00021917,2]
[372220558,1752555049714,-460.0,0.00021917,3]
[372220559,1752555049725,-4718.55,0.00021917,3]
[372220560,1752555049734,-610.27,0.00021917,3]
[372220561,1752555049743,-151.921054,0.00021917,2]
[372220562,1752555049752,-2259.06,0.00021917,3]
[372220563,1752555049761,-1219.81,0.00021917,3]
[372220564,1752555049770,-746.45,0.00021917,3]
[372220565,1752555049780,-577.45,0.00021917,3]
[372220566,1752555049789,-533.07,0.00021917,3]
[372220567,1752555049798,-769.52,0.00021917,3]
[372220568,1752555049807,-460.0,0.00021917,3]
[372220569,1752555049816,-3197.5,0.00021917,3]
[372220570,1752555049825,-460.0,0.00021917,3]
[372220571,1752555049834,-518.82,0.00021917,3]
[372220572,1752555049843,-461.38,0.00021917,3]
[372220573,1752555049853,-587.22547254,0.00021917,3]
[372220574,1752555049863,-460.0,0.00021917,3]
[372220575,1752555049872,-802.02,0.00021917,3]
[372220576,1752555049883,-532.17,0.00021917,3]
[372220577,1752555049892,-2142.07,0.00021917,3]
[372220578,1752555049901,-460.0,0.00021917,3]
[372220579,1752555049910,-460.0,0.00021917,3]
[372220580,1752555049919,-169.95868,0.00021917,2]
[372220581,1752555049928,-169.95868,0.00021917,2]
[372220582,1752555049937,-473.5,0.00021917,3]
[372220583,1752555049947,-460.0,0.00021917,3]
[372220584,1752555049956,-481.12,0.00021917,3]
[372220585,1752555049965,-667.24,0.00021917,3]
[372220586,1752555049974,-1088.91,0.00021917,3]
[372220587,1752555049983,-151.0,0.00021917,2]
[372220588,1752555049993,-151.0,0.00021917,2]
[372220589,1752555050002,-642.73,0.00021917,3]
[372220590,1752555050011,-605.34,0.00021917,3]
[372220591,1752555050020,-917.12,0.00021917,3]
[372220592,1752555050030,-3078.1,0.00021917,3]
[372220593,1752555050039,-488.91,0.00021917,3]
[372220594,1752555050048,-460.0,0.00021917,3]
[372220595,1752555050057,-460.0,0.00021917,3]
[372220596,1752555050066,-460.0,0.00021917,3]
[372220597,1752555050075,-162.909715,0.00021917,2]
[372220598,1752555050084,-162.909715,0.00021917,2]
[372220599,1752555050093,-460.0,0.00021917,3]
[372220600,1752555050102,-460.0,0.00021917,3]
[372220601,1752555050111,-162.909715,0.00021917,2]
[372220602,1752555050120,-460.0,0.00021917,3]
[372220603,1752555050130,-162.909715,0.00021917,2]
[372220604,1752555050139,-460.0,0.00021917,3]
[372220605,1752555050148,-460.0,0.00021917,3]
[372220606,1752555050156,-973.85,0.00021917,3]
[372220607,1752555050165,-5137.24,0.00021917,3]
[372220608,1752555050174,-562.29,0.00021917,3]
[372220609,1752555050183,-574.14,0.00021917,3]
[372220610,1752555050193,-3923.86,0.00021917,3]
[372220611,1752555050202,-863.54,0.00021917,3]
[372220612,1752555050211,-1061.95,0.00021917,3]
[372220613,1752555050220,-460.0,0.00021917,3]
[372220614,1752555050229,-151.0,0.00021918,2]
[372220615,1752555050238,-151.448104,0.00021918,2]
[372220616,1752555050247,-151.0,0.00021918,2]
[372220617,1752555050256,-151.0,0.00021918,2]
[372220618,1752555050265,-151.0,0.00021918,2]
[372220619,1752555050274,-151.0,0.00021918,2]
[372220620,1752555050283,-151.0,0.00021918,2]
[372220621,1752555050292,-151.0,0.00021918,2]
[372220622,1752555050301,-151.0,0.00021918,2]
[372220623,1752555050310,-151.0,0.00021918,2]
[372220624,1752555050320,-151.0,0.00021918,2]
[372220625,1752555050329,-151.0,0.00021918,2]
[372220626,1752555050339,-151.0,0.00021918,2]
[372220627,1752555050349,-151.0,0.00021918,2]
[372220628,1752555050359,-179.24149705,0.00021918,2]
[372220629,1752555050369,-1000.0,0.00021927,5]
[372220630,1752555050378,-7435.59614635,0.00021934,6]
[372220631,1752555050389,-150.0,0.00021973,2]
[372220632,1752555050399,-500.0,0.00021973,2]
[372220633,1752555050408,-588.36461943,0.00021973,2]
[372220634,1752555050420,-500.0,0.00021973,2]
[372220635,1752555050429,-501.25514528,0.00021973,2]
[372220636,1752555050438,-500.0,0.00021973,2]
[372220637,1752555050449,-502.02754176,0.00021973,2]
[372220638,1752555050460,-500.0,0.00021973,2]
[372220639,1752555050470,-502.56664836,0.00021973,2]
[372220640,1752555050479,-500.0,0.00021973,2]
[372220641,1752555050488,-501.98032672,0.00021973,2]
[372220642,1752555050498,-158.05766688,0.00021973,2]
[372220643,1752555050507,-500.0,0.00021973,2]
[372220644,1752555050516,-151.0,0.00021973,7]
[372220645,1752555050526,-186.153723,0.00021973,7]
[372220646,1752555050535,-238.908109,0.00021973,7]
[372220647,1752555050545,-151.0,0.00021973,7]
[372220648,1752555050554,-151.0,0.00021973,7]
[372220649,1752555050563,-553.465009,0.00021973,7]
[372220650,1752555050572,-553.465009,0.00021973,7]
[372220651,1752555050582,-553.465009,0.00021973,7]
[372220652,1752555050592,-553.465009,0.00021973,7]
[372220653,1752555050602,-1023.824122,0.00021973,7]
[372220654,1752555050611,-1023.824122,0.00021973,7]
[372220655,1752555050621,-1023.824122,0.00021973,7]
[372220656,1752555050631,-1023.824122,0.00021973,7]
[372220657,1752555050641,-151.840588,0.00021973,7]
[372220658,1752555050650,-151.0,0.00021973,3]
[372220659,1752555050659,-151.0,0.00021973,3]
[372220660,1752555050669,-521.740457,0.00021973,7]
[372220661,1752555050679,-521.740457,0.00021973,7]
[372220662,1752555050755,-521.740457,0.00021973,7]
[372220663,1752555050765,-521.740457,0.00021973,7]
[372220664,1752555050775,-521.740457,0.00021973,7]
[372220665,1752555050784,-521.740457,0.00021973,7]
[372220666,1752555050794,-506.846544,0.00021973,7]
[372220667,1752555050803,-506.846544,0.00021973,7]
[372220668,1752555050813,-506.846544,0.00021973,7]
[372220669,1752555050822,-800.446242,0.00021973,7]
[372220670,1752555050832,-800.446242,0.00021973,7]
[372220671,1752555050841,-800.446242,0.00021973,7]
[372220672,1752555050851,-506.846544,0.00021973,7]
[372220673,1752555050860,-506.846544,0.00021973,7]